[Event "Elitserien Allsvenskan 2018-19"]
[Site "Sweden"]
[Date "2019.03.31"]
[Round "9.5"]
[White "Ertan, Can"]
[Black "Gajic, Mladen"]
[Result "0-1"]
[ECO "B06"]
[WhiteElo "2404"]
[BlackElo "2322"]
[Annotator "ChessBase"]
[PlyCount "124"]
[EventDate "2018.11.09"]
[EventType "team-tourn"]
[EventCountry "SWE"]
[SourceTitle "playchess.com"]
[Source "ChessBase"]
[SourceQuality "1"]
[TimeControl "40/5400+30:1800+30"]

1. e4 {[%emt 0:01:30]} g6 {[%emt 0:00:21]} 2. d4 {[%emt 0:00:06]} Bg7 {[%emt 0:00:03]} 3. Nc3 {[%emt 0:00:34]} d6 {[%emt 0:00:31]} 4. Bg5 {[%emt 0:08:21]} a6 {[%emt 0:03:18]} 5. f4 {[%emt 0:07:28]} b5 {[%emt 0:01:53]} 6. Nf3 {[%emt 0:00:10]} Bb7 {[%emt 0:03:39]} 7. a3 {[%emt 0:05:13]} Nd7 {[%emt 0:08:37]} 8. e5 {[%emt 0:06:00]} c5 {[%emt 0:08:16]} 9. Bd3 {[%emt 0:08:54]} cxd4 {[%emt 0:03:38]} 10. Ne4 {[%emt 0:00:12]} Qb6 {[%emt 0:10:01]} 11. exd6 {[%emt 0:07:15]} f5 {[%emt 0:01:56]} 12. Ng3 {[%emt 0:08:38]} Qxd6 {[%emt 0:00:48]} 13. Ne2 {[%emt 0:03:50]} Nc5 {[%emt 0:26:10]} 14. O-O {[%emt 0:00:38]} Rd8 {[%emt 0:00:43]} 15. Bh4 {[%emt 0:11:46]} Nh6 {[%emt 0:00:50]} 16. h3 {[%emt 0:02:15]} O-O {[%emt 0:02:19]} 17. Bf2 {[%emt 0:04:14]} Nf7 {[%emt 0:05:48]} 18. Nexd4 {[%emt 0:05:09]} Qxf4 {[%emt 0:01:32]} 19. Qe2 {[%emt 0:03:00]} Nxd3 {[%emt 0:10:32]} 20. Be3 {[%emt 0:10:58]} Qe4 {[%emt 0:03:53]} 21. cxd3 {[%emt 0:02:10]} Qd5 {[%emt 0:00:01]} 22. Rad1 {[%emt 0:00:50]} e5 {[%emt 0:03:01]} 23. Nc2 {[%emt 0:00:03]} e4 {[%emt 0:01:01]} 24. Nfd4 {[%emt 0:01:32]} exd3 {[%emt 0:01:20]} 25. Rxd3 {[%emt 0:00:03]} Rfe8 {[%emt 0:00:14]} 26. Rd2 {[%emt 0:01:06]} Qe4 {[%emt 0:01:26]} 27. Qf2 {[%emt 0:00:49]} Ba8 {[%emt 0:01:05]} 28. Re1 {[%emt 0:00:15]} Qb7 {[%emt 0:00:09]} 29. Bf4 {[%emt 0:00:39]} Rxe1+ {[%emt 0:00:34]} 30. Qxe1 {[%emt 0:00:04]} g5 {[%emt 0:00:48]} 31. Nf3 {[%emt 0:01:02]} Rxd2 {[%emt 0:00:32]} 32. Qe8+ {[%emt 0:00:15]} Bf8 {[%emt 0:00:04]} 33. Bxd2 {[%emt 0:00:04]} Qe4 {[%emt 0:00:52]} 34. Qxf7+ {[%emt 0:00:35]} Kxf7 {[%emt 0:00:01]} 35. Nxg5+ {[%emt 0:00:05]} Kg6 {[%emt 0:00:11]} 36. Nxe4 {[%emt 0:00:11]} Bxe4 {[%emt 0:00:10]} 37. Nd4 {[%emt 0:00:53]} Bc5 {[%emt 0:00:18]} 38. Be3 {[%emt 0:00:23]} f4 {[%emt 0:00:55]} 39. Bf2 {[%emt 0:00:03]} Kf6 {[%emt 0:01:17]} 40. Nb3 {[%emt 0:00:02]} Bxf2+ {[%emt 0:00:36]} 41. Kxf2 {[%emt 0:30:04]} Ke5 {[%emt 0:30:30]} 42. Nc5 {[%emt 0:00:10]} a5 {[%emt 0:00:22]} 43. g3 {[%emt 0:00:00]} fxg3+ {[%emt 0:00:00]} 44. Kxg3 {[%emt 0:00:00]} Bd5 {[%emt 0:00:00]} 45. Nd7+ {[%emt 0:00:00]} Kd4 {[%emt 0:00:00]} 46. Nf6 {[%emt 0:00:00]} Be4 {[%emt 0:00:00]} 47. Kf4 {[%emt 0:00:00]} Bc2 {[%emt 0:00:00]} 48. Ne8 {[%emt 0:00:00]} a4 {[%emt 0:00:00]} 49. h4 {[%emt 0:00:00]} Bd1 {[%emt 0:00:00]} 50. Nd6 {[%emt 0:00:00]} Be2 {[%emt 0:00:00]} 51. h5 {[%emt 0:00:00]} Kd5 {[%emt 0:00:00]} 52. Ne4 {[%emt 0:00:00]} Bxh5 {[%emt 0:00:00]} 53. Nf6+ {[%emt 0:00:00]} Kc4 {[%emt 0:00:00]} 54. Nxh5 {[%emt 0:00:00]} Kb3 {[%emt 0:00:00]} 55. Nf6 {[%emt 0:06:01]} Kxb2 {[%emt 0:00:00]} 56. Nxh7 {[%emt 0:00:30]} Kxa3 {[%emt 0:00:00]} 57. Nf6 {[%emt 0:00:26]} Kb2 {[%emt 0:00:00]} 58. Ne4 {[%emt 0:02:14]} a3 {[%emt 0:00:00]} 59. Nd6 {[%emt 0:00:47]} b4 {[%emt 0:00:00]} 60. Nc4+ {[%emt 0:01:04]} Kc3 {[%emt 0:00:00]} 61. Ne3 {[%emt 0:00:03]} a2 {[%emt 0:00:00]} 62. Nd5+ {[%emt 0:00:03]} Kb3 {[%emt 0:00:00]} 0-1

[Event "Elitserien Allsvenskan 2018-19"]
[Site "Sweden"]
[Date "2019.03.31"]
[Round "9.5"]
[White "Ong, Kezli"]
[Black "Schutz, Ingemar"]
[Result "1-0"]
[ECO "B51"]
[WhiteElo "2330"]
[BlackElo "2195"]
[Annotator "NA"]
[PlyCount "94"]
[EventDate "2018.11.09"]
[EventType "team-tourn"]
[EventCountry "SWE"]
[SourceTitle "playchess.com"]
[Source "ChessBase"]
[SourceQuality "1"]
[TimeControl "40/5400+30:1800+30"]

1. e4 {[%emt 0:03:14]} c5 {[%emt 0:00:00]} 2. Nf3 {[%emt 0:00:17]} d6 {[%emt 0:00:05]} 3. Bb5+ {[%emt 0:00:28]} Nc6 {[%emt 0:00:20]} 4. O-O {[%emt 0:05:29]} Bd7 {[%emt 0:02:17]} 5. Re1 {[%emt 0:02:10]} a6 {[%emt 0:02:44]} 6. Bf1 {[%emt 0:04:36]} Nf6 {[%emt 0:03:36]} 7. c3 {[%emt 0:02:15]} Bg4 {[%emt 0:07:05]} 8. h3 {[%emt 0:03:03]} Bh5 {[%emt 0:01:04]} 9. g4 {[%emt 0:10:07] B51: Sicilian: Moscow Variation (3 Bb5+) without 3...Bd7} (9. d4 Bxf3 10. gxf3 e5 11. d5 Ne7 12. f4 Ng6 13. f5 Ne7 14. Bg5 Neg8 15. b4 cxb4 16. cxb4 g6 {0-1 (33) Demchenko,A (2660)-Korobov,A (2652) Riadh 2017}) 9... Bg6 {[%emt 0:02:19]} 10. d4 {[%emt 0:01:21]} e5 {[%emt 0:12:38]} ({But not} 10... Nxe4 $6 11. d5 $16) 11. dxe5 {[%emt 0:13:45]} dxe5 {[%emt 0:02:52]} 12. Qc2 {[%emt 0:00:29]} Be7 {[%emt 0:03:25]} 13. a4 $146 {[%emt 0:04:47]} ({Predecessor:} 13. Nbd2 O-O 14. Nc4 Qc7 15. Bg5 Nd5 16. Bxe7 Qxe7 {1-0 (50) Goh,W (2424)-Nguyen,H (2464) Tagaytay City 2011}) 13... h5 {[%emt 0:03:00]} 14. g5 {[%emt 0:04:16]} Nh7 {[%emt 0:04:00]} 15. Rd1 {[%emt 0:02:42]} Qc7 {[%emt 0:06:05]} 16. Na3 {[%emt 0:06:22]} Rd8 {[%emt 0:04:05]} 17. Be3 {[%emt 0:04:12]} Rxd1 {[%emt 0:10:29]} 18. Rxd1 {[%emt 0:00:11]} h4 {[%emt 0:00:21]} 19. Nxh4 {[%emt 0:08:05]} Bh5 {[%emt 0:01:07]} 20. Rd5 {[%emt 0:03:48]} Nxg5 {[%emt 0:02:45]} 21. Bxg5 {[%emt 0:03:23]} Bxg5 {[%emt 0:00:07]} 22. Nf5 {[%emt 0:00:33]} Ne7 {[%emt 0:05:36]} 23. Nxe7 {[%emt 0:13:17]} Qxe7 {[%emt 0:06:12]} 24. Nc4 {[%emt 0:00:05]} Bf4 {[%emt 0:00:41]} 25. Nd6+ {[%emt 0:00:06]} Kf8 {[%emt 0:00:48]} 26. Qd3 {[%emt 0:00:26]} g6 {[%emt 0:10:19]} 27. Nxf7 {[%emt 0:01:29]} Qxf7 {[%emt 0:03:23]} 28. Rd8+ {[%emt 0:00:09]} Kg7 {[%emt 0:00:08]} 29. Rd7 {[%emt 0:00:06]} Rf8 {[%emt 0:00:04]} 30. Rxf7+ {[%emt 0:00:19]} Rxf7 {[%emt 0:00:05]} 31. Qd6 {[%emt 0:00:49]} Kh6 {[%emt 0:03:50]} 32. Bc4 {[%emt 0:00:48]} Rg7 {[%emt 0:00:33]} 33. Qxc5 {[%emt 0:01:14]} Bf3 {[%emt 0:00:56]} 34. Qd5 {[%emt 0:01:55]} g5 {[%emt 0:00:13]} 35. Kf1 {[%emt 0:00:35]} g4 {[%emt 0:00:24]} 36. Be2 {[%emt 0:00:35]} Bxe2+ {[%emt 0:02:41]} 37. Kxe2 {[%emt 0:00:02]} g3 {[%emt 0:00:12]} 38. fxg3 {[%emt 0:00:10]} Rxg3 {[%emt 0:00:04]} 39. Qxb7 {[%emt 0:00:35]} Rxh3 {[%emt 0:00:40]} 40. Qxa6+ {[%emt 0:00:00]} Kg5 {[%emt 0:00:00]} 41. Qb7 {[%emt 0:31:43]} Bc1 {[%emt 0:03:52]} 42. Kd1 {[%emt 0:00:00]} Be3 {[%emt 0:02:37]} 43. a5 {[%emt 0:00:00]} Rh2 {[%emt 0:03:31]} 44. a6 {[%emt 0:00:00]} Kf4 $18 {[%emt 0:03:12]} 45. a7 {[%emt 0:00:00]} Kf3 {[%emt 0:02:15]} 46. a8=Q {[%emt 0:00:00]} Rd2+ {[%emt 0:00:24]} 47. Kc1 {[%emt 0:00:00]} Kf4 1-0

[Event "Elitserien Allsvenskan 2018-19"]
[Site "Sweden"]
[Date "2019.03.31"]
[Round "9.5"]
[White "Bergstrom, Peter"]
[Black "Lindgren, Mats"]
[Result "1-0"]
[ECO "C15"]
[WhiteElo "2299"]
[BlackElo "2159"]
[Annotator "NA"]
[PlyCount "87"]
[EventDate "2018.11.09"]
[EventType "team-tourn"]
[EventCountry "SWE"]
[SourceTitle "playchess.com"]
[Source "ChessBase"]
[SourceQuality "1"]
[TimeControl "40/5400+30:1800+30"]

1. e4 {[%emt 0:00:00]} e6 {[%emt 0:00:00]} 2. d4 {[%emt 0:00:00]} d5 {[%emt 0:00:00]} 3. Nc3 {[%emt 0:00:00]} Bb4 {[%emt 0:00:00]} 4. Nge2 {[%emt 0:00:08]} dxe4 {[%emt 0:00:35]} 5. a3 {[%emt 0:00:27]} Bxc3+ {[%emt 0:00:05]} 6. Nxc3 {[%emt 0:00:05]} Bd7 {[%emt 0:00:33] C15: French: 3 Nc3 Bb4: Unusual White 4th moves} 7. Qg4 {[%emt 0:14:23]} Nf6 {[%emt 0:00:51]} 8. Qxg7 {[%emt 0:00:05]} Rg8 {[%emt 0:00:14]} 9. Qh6 {[%emt 0:00:05]} Bc6 {[%emt 0:01:04]} 10. Be3 $146 {[%emt 0:00:40]} ({Predecessor:} 10. Qh4 Rg6 11. Be3 Nbd7 12. O-O-O Qe7 13. h3 O-O-O 14. g4 {½-½ (41) Berg,E (2523)-Lindgren,M (2220) Umea 2003}) 10... Nbd7 {[%emt 0:08:06]} 11. O-O-O {[%emt 0:02:39]} a6 {[%emt 0:12:17]} 12. h3 {[%emt 0:02:27]} Rg6 {[%emt 0:08:42]} 13. Qh4 {[%emt 0:02:08]} Nd5 {[%emt 0:08:45]} 14. Qxd8+ {[%emt 0:04:33]} Rxd8 {[%emt 0:00:47]} 15. Nxd5 {[%emt 0:00:20]} exd5 {[%emt 0:00:23]} 16. b3 {[%emt 0:00:27]} Bb5 {[%emt 0:03:19]} 17. c4 {[%emt 0:06:11]} Bc6 {[%emt 0:07:18]} 18. g4 {[%emt 0:03:10]} b5 {[%emt 0:02:04]} 19. c5 {[%emt 0:02:01]} Nf8 {[%emt 0:03:00]} 20. Be2 {[%emt 0:02:24]} Bd7 {[%emt 0:07:23]} 21. Rdg1 $16 {[%emt 0:02:21]} Ne6 {[%emt 0:11:49]} 22. h4 {[%emt 0:25:45]} Ke7 {[%emt 0:05:23]} 23. g5 {[%emt 0:02:01]} Ng7 {[%emt 0:02:06]} 24. h5 {[%emt 0:02:35]} Rc6 {[%emt 0:01:04]} 25. Bf4 {[%emt 0:00:43]} Nf5 {[%emt 0:03:30]} 26. Be5 {[%emt 0:00:22]} Rg8 {[%emt 0:01:24]} 27. f3 {[%emt 0:12:40]} exf3 {[%emt 0:02:31]} 28. Bxf3 {[%emt 0:00:21]} Be6 {[%emt 0:00:02]} 29. Kd2 {[%emt 0:01:07]} Kd7 {[%emt 0:01:23]} 30. Be2 {[%emt 0:02:36]} Kc8 {[%emt 0:05:06]} 31. b4 {[%emt 0:06:16]} Ne7 {[%emt 0:04:31]} 32. a4 {[%emt 0:01:36]} bxa4 {[%emt 0:00:59]} 33. b5 {[%emt 0:00:17]} axb5 {[%emt 0:00:08]} 34. Bxb5 {[%emt 0:00:02]} Kb7 {[%emt 0:00:42]} 35. Bf6 {[%emt 0:00:45]} Nc8 {[%emt 0:00:48]} 36. Bxc6+ {[%emt 0:00:37]} Kxc6 {[%emt 0:00:02]} 37. Ra1 {[%emt 0:00:07]} h6 {[%emt 0:00:24]} 38. Rhg1 {[%emt 0:00:21]} hxg5 {[%emt 0:00:29]} 39. Rxg5 {[%emt 0:00:18]} Rxg5 {[%emt 0:00:35]} 40. Bxg5 {[%emt 0:00:01]} Na7 {[%emt 0:00:24]} 41. Rxa4 {[%emt 0:30:57]} Nb5 {[%emt 0:30:01]} 42. Bf6 {[%emt 0:00:07]} Bf5 {[%emt 0:00:42]} 43. Ra5 {[%emt 0:02:42]} Be4 {[%emt 0:00:00]} 44. h6 {[%emt 0:00:00]} 1-0

[Event "Elitserien Allsvenskan 2018-19"]
[Site "Sweden"]
[Date "2019.03.31"]
[Round "9.6"]
[White "Vernersson, Per"]
[Black "Olund, Joar"]
[Result "1/2-1/2"]
[ECO "E91"]
[WhiteElo "2290"]
[BlackElo "2353"]
[Annotator "ChessBase"]
[PlyCount "58"]
[EventDate "2018.11.09"]
[EventType "team-tourn"]
[EventCountry "SWE"]
[SourceTitle "playchess.com"]
[Source "ChessBase"]
[SourceQuality "1"]
[TimeControl "40/5400+30:1800+30"]

1. d4 {[%emt 0:00:00]} Nf6 {[%emt 0:10:39]} 2. c4 {[%emt 0:00:00]} g6 {[%emt 0:00:11]} 3. Nc3 {[%emt 0:00:17]} Bg7 {[%emt 0:00:03]} 4. e4 {[%emt 0:00:30]} d6 {[%emt 0:00:04]} 5. Be2 {[%emt 0:00:42]} O-O {[%emt 0:00:15]} 6. Nf3 {[%emt 0:00:13]} Bg4 {[%emt 0:00:20]} 7. Be3 {[%emt 0:00:46]} Nfd7 {[%emt 0:06:29]} 8. Ng1 {[%emt 0:02:03]} Bxe2 {[%emt 0:00:12]} 9. Ngxe2 {[%emt 0:00:20]} e5 {[%emt 0:00:40]} 10. O-O {[%emt 0:04:10]} Nc6 {[%emt 0:00:44]} 11. dxe5 {[%emt 0:15:13]} dxe5 {[%emt 0:00:07]} 12. Qd2 {[%emt 0:02:44]} Nb6 {[%emt 0:00:58]} 13. Qxd8 {[%emt 0:03:34]} Rfxd8 {[%emt 0:00:48]} 14. b3 {[%emt 0:00:09]} Nd4 {[%emt 0:00:27]} 15. Rad1 {[%emt 0:02:05]} c6 {[%emt 0:00:23]} 16. Rd2 {[%emt 0:03:32]} Nxe2+ {[%emt 0:00:08]} 17. Rxe2 {[%emt 0:00:53]} Rd3 {[%emt 0:00:11]} 18. Rc1 {[%emt 0:01:43]} Rad8 {[%emt 0:00:05]} 19. Kf1 {[%emt 0:01:11]} Bf8 {[%emt 0:01:02]} 20. c5 {[%emt 0:01:04]} Nd7 {[%emt 0:00:44]} 21. Na4 {[%emt 0:00:32]} Nb8 {[%emt 0:00:54]} 22. Nb2 {[%emt 0:00:33]} R3d7 {[%emt 0:00:08]} 23. b4 {[%emt 0:01:42]} Na6 {[%emt 0:00:28]} 24. a3 {[%emt 0:00:24]} f6 {[%emt 0:00:23]} 25. Ree1 {[%emt 0:03:24]} Nc7 {[%emt 0:05:14]} 26. Red1 {[%emt 0:02:27]} Kf7 {[%emt 0:03:37]} 27. Rxd7+ {[%emt 0:00:42]} Rxd7 {[%emt 0:00:04]} 28. Ke2 {[%emt 0:01:24]} Ke6 {[%emt 0:00:31]} 29. Rd1 {[%emt 0:05:14]} Rxd1 {[%emt 0:00:26]} 1/2-1/2

[Event "Elitserien Allsvenskan 2018-19"]
[Site "Sweden"]
[Date "2019.03.31"]
[Round "9.6"]
[White "Johansson, David"]
[Black "Norberg, Johan"]
[Result "0-1"]
[ECO "A11"]
[WhiteElo "2128"]
[BlackElo "2305"]
[Annotator "NA"]
[PlyCount "80"]
[EventDate "2018.11.09"]
[EventType "team-tourn"]
[EventCountry "SWE"]
[SourceTitle "playchess.com"]
[Source "ChessBase"]
[SourceQuality "1"]
[TimeControl "40/5400+30:1800+30"]

1. e4 {[%emt 0:02:47]} a6 {[%emt 0:00:00]} 2. d4 {[%emt 0:00:41]} b5 {[%emt 0:00:45]} 3. Be3 {[%emt 0:02:30]} d5 {[%emt 0:07:25]} 4. a4 {[%emt 0:08:45]} b4 {[%emt 0:06:39]} 5. Nd2 {[%emt 0:00:21]} dxe4 {[%emt 0:04:02]} 6. Nxe4 {[%emt 0:04:03]} Nd7 {[%emt 0:01:50]} 7. Nf3 {[%emt 0:03:02]} Ngf6 {[%emt 0:01:47]} 8. Nxf6+ {[%emt 0:03:04]} Nxf6 {[%emt 0:02:39]} 9. a5 {[%emt 0:01:42]} e6 {[%emt 0:04:39]} 10. Bd3 {[%emt 0:02:14]} Be7 {[%emt 0:04:00]} 11. O-O {[%emt 0:04:01]} O-O {[%emt 0:05:39]} 12. Ne5 {[%emt 0:03:54]} Bb7 {[%emt 0:02:57]} 13. Re1 {[%emt 0:00:43]} Nd5 {[%emt 0:14:01]} 14. Bd2 {[%emt 0:08:19]} c5 {[%emt 0:03:35]} 15. dxc5 $14 {[%emt 0:07:33]} Bxc5 {[%emt 0:02:00]} 16. Qh5 {[%emt 0:02:36]} f5 {[%emt 0:08:14]} 17. Bc4 {[%emt 0:12:16]} Bd4 {[%emt 0:11:49]} 18. Nd3 {[%emt 0:05:22]} Rc8 {[%emt 0:01:43]} 19. Bb3 {[%emt 0:02:00]} Re8 {[%emt 0:13:55]} 20. Nxb4 {[%emt 0:12:48]} Bxb2 {[%emt 0:01:45]} 21. Rad1 {[%emt 0:01:32]} g6 {[%emt 0:00:29]} 22. Qf3 {[%emt 0:06:19]} Qd7 {[%emt 0:00:30]} 23. Bh6 {[%emt 0:03:08]} Qb5 {[%emt 0:00:32]} 24. Nxd5 {[%emt 0:00:47]} Bxd5 {[%emt 0:00:04]} 25. Bxd5 {[%emt 0:00:24]} exd5 {[%emt 0:00:02]} 26. Rxe8+ {[%emt 0:01:11]} Rxe8 {[%emt 0:00:01]} 27. h3 {[%emt 0:00:53]} Re4 {[%emt 0:01:43]} 28. Qb3 {[%emt 0:00:26]} Qxb3 {[%emt 0:00:27]} 29. cxb3 {[%emt 0:00:05]} d4 {[%emt 0:00:29]} 30. Rd3 {[%emt 0:00:54]} Re1+ {[%emt 0:00:41]} 31. Kh2 {[%emt 0:00:03]} Ra1 {[%emt 0:00:20]} 32. b4 {[%emt 0:00:22]} Bc3 {[%emt 0:00:29]} 33. Bf4 {[%emt 0:01:10]} Kf7 {[%emt 0:00:30]} 34. Bd6 {[%emt 0:00:23]} Ke6 {[%emt 0:00:08]} 35. Bf8 {[%emt 0:00:24]} Kd5 {[%emt 0:00:06]} 36. g4 {[%emt 0:00:40]} Ke4 {[%emt 0:01:08]} 37. Rg3 {[%emt 0:00:05]} f4 {[%emt 0:00:11]} 38. Rg1 {[%emt 0:00:39]} Rxg1 {[%emt 0:00:23]} 39. Kxg1 {[%emt 0:00:04]} d3 {[%emt 0:00:08]} 40. Kf1 {[%emt 0:00:41]} Kf3 {[%emt 0:00:06]} 0-1

[Event "Elitserien Allsvenskan 2018-19"]
[Site "Sweden"]
[Date "2019.03.31"]
[Round "9.6"]
[White "Bjorkeroth, Johan"]
[Black "Namini, Armin"]
[Result "1-0"]
[ECO "B25"]
[WhiteElo "2118"]
[BlackElo "2210"]
[Annotator "NA"]
[PlyCount "71"]
[EventDate "2018.11.09"]
[EventType "team-tourn"]
[EventCountry "SWE"]
[SourceTitle "playchess.com"]
[Source "ChessBase"]
[SourceQuality "1"]
[TimeControl "40/5400+30:1800+30"]

1. e4 {[%emt 0:00:00]} c5 {[%emt 0:00:00]} 2. Nc3 {[%emt 0:00:00]} Nc6 {[%emt 0:00:00]} 3. g3 {[%emt 0:00:00]} g6 {[%emt 0:00:00]} 4. Bg2 {[%emt 0:00:02]} Bg7 {[%emt 0:00:00]} 5. d3 {[%emt 0:00:05]} d6 {[%emt 0:00:06]} 6. Nge2 {[%emt 0:00:05]} e6 {[%emt 0:05:16]} 7. O-O {[%emt 0:00:43]} Nge7 {[%emt 0:01:04]} 8. Be3 {[%emt 0:06:31]} Nd4 {[%emt 0:00:32]} 9. Qd2 {[%emt 0:02:04]} O-O {[%emt 0:01:26]} 10. Nd1 {[%emt 0:10:29]} d5 {[%emt 0:07:39]} 11. c3 {[%emt 0:05:09]} Nxe2+ {[%emt 0:01:01]} 12. Qxe2 {[%emt 0:00:06]} d4 {[%emt 0:02:40]} 13. Bf4 {[%emt 0:00:58]} e5 {[%emt 0:00:54]} 14. Bd2 {[%emt 0:01:23]} Rb8 {[%emt 0:08:57]} 15. c4 {[%emt 0:08:03]} Nc6 {[%emt 0:00:52]} 16. f4 {[%emt 0:01:25]} b5 $14 {[%emt 0:04:36]} 17. cxb5 {[%emt 0:05:28]} Rxb5 {[%emt 0:00:12]} 18. b3 {[%emt 0:01:58]} exf4 {[%emt 0:07:54]} 19. gxf4 {[%emt 0:00:44]} Nb4 {[%emt 0:02:07]} 20. Be1 {[%emt 0:18:25]} Re8 {[%emt 0:02:53]} 21. Bxb4 {[%emt 0:04:43]} cxb4 {[%emt 0:04:56]} 22. Rc1 {[%emt 0:05:14]} Ra5 {[%emt 0:07:33]} 23. Nf2 {[%emt 0:07:49]} Qh4 {[%emt 0:02:28]} 24. Nh1 {[%emt 0:03:24]} Ba6 {[%emt 0:09:13]} 25. Ng3 {[%emt 0:00:35]} Bh6 {[%emt 0:03:37]} 26. Qd2 {[%emt 0:02:24]} Qe7 {[%emt 0:00:02]} 27. Rf2 {[%emt 0:01:43]} Rc5 {[%emt 0:01:23]} 28. Bf1 {[%emt 0:04:03]} Rec8 {[%emt 0:04:52]} 29. Rxc5 {[%emt 0:00:22]} Qxc5 {[%emt 0:00:16]} 30. e5 {[%emt 0:04:10]} Qc3 {[%emt 0:01:46]} 31. Qe2 {[%emt 0:00:38]} Qc1 {[%emt 0:07:50]} 32. Ne4 {[%emt 0:03:38]} Bxf4 {[%emt 0:04:42]} 33. Qf3 {[%emt 0:00:43]} Bxe5 {[%emt 0:04:34]} 34. Qxf7+ {[%emt 0:00:06]} Kh8 {[%emt 0:00:02]} 35. Qe6 {[%emt 0:00:24]} Qc7 {[%emt 0:02:47]} 36. Qxa6 {[%emt 0:00:33]} 1-0

[Event "Elitserien Allsvenskan 2018-19"]
[Site "Sweden"]
[Date "2019.03.31"]
[Round "9.7"]
[White "Haubro, Martin"]
[Black "Sorensen, Hampus"]
[Result "1-0"]
[ECO "C95"]
[WhiteElo "2358"]
[BlackElo "2319"]
[Annotator "NA"]
[PlyCount "103"]
[EventDate "2018.11.09"]
[EventType "team-tourn"]
[EventCountry "SWE"]
[SourceTitle "playchess.com"]
[Source "ChessBase"]
[SourceQuality "1"]
[TimeControl "40/5400+30:1800+30"]

1. e4 {[%emt 0:00:00]} e5 {[%emt 0:00:06]} 2. Nf3 {[%emt 0:00:00]} Nc6 {[%emt 0:00:38]} 3. Bb5 {[%emt 0:00:00]} a6 {[%emt 0:01:18]} 4. Ba4 {[%emt 0:00:00]} Nf6 {[%emt 0:00:08]} 5. O-O {[%emt 0:00:00]} Be7 {[%emt 0:02:14]} 6. Re1 {[%emt 0:00:00]} b5 {[%emt 0:00:05]} 7. Bb3 {[%emt 0:00:01]} d6 {[%emt 0:00:26]} 8. c3 {[%emt 0:00:04]} O-O {[%emt 0:00:15]} 9. h3 {[%emt 0:00:04]} Nb8 {[%emt 0:00:56]} 10. d4 {[%emt 0:00:06]} Nbd7 {[%emt 0:01:02]} 11. Nbd2 {[%emt 0:00:06]} Bb7 {[%emt 0:01:17]} 12. Bc2 {[%emt 0:00:06]} Re8 {[%emt 0:03:33]} 13. Nf1 {[%emt 0:02:09]} Bf8 {[%emt 0:02:32]} 14. Ng3 {[%emt 0:00:05]} g6 {[%emt 0:05:27]} 15. a4 {[%emt 0:00:05]} c5 {[%emt 0:03:49]} 16. d5 {[%emt 0:02:51]} c4 {[%emt 0:01:05]} 17. Bg5 {[%emt 0:00:04]} Be7 {[%emt 0:10:21] C95: Closed Ruy Lopez: Breyer Variation with 10 d4} 18. Qd2 {[%emt 0:00:41]} Nc5 {[%emt 0:01:20] [#]} 19. Re2 $146 {[%emt 0:25:37]} ({Predecessor:} 19. Bh6 Nfd7 20. Nh2 bxa4 21. Ng4 Nb3 22. Bxb3 axb3 23. f4 Nf6 24. Ne3 exf4 25. Bxf4 {½-½ (54) Borisek,J (2578)-Amin,B (2686) Batumi 2018}) 19... Qa5 {[%emt 0:07:24]} 20. Ra3 {[%emt 0:02:13]} bxa4 {[%emt 0:07:21]} 21. Qd1 {[%emt 0:01:57]} Qc7 {[%emt 0:03:26]} 22. Bxa4 {[%emt 0:01:46]} Reb8 {[%emt 0:07:08]} 23. Qd2 {[%emt 0:16:34]} Bc8 {[%emt 0:03:04]} 24. Qe3 {[%emt 0:10:11]} Rb6 {[%emt 0:04:58]} 25. Bd1 {[%emt 0:00:06]} Rab8 {[%emt 0:01:36]} 26. Nd2 {[%emt 0:09:54]} Rxb2 {[%emt 0:05:46]} 27. Nxc4 {[%emt 0:00:05]} Rb1 {[%emt 0:00:35]} 28. Re1 {[%emt 0:00:38]} Bd7 {[%emt 0:06:38]} 29. Nd2 {[%emt 0:05:11]} R1b2 {[%emt 0:00:12]} 30. Nc4 {[%emt 0:02:48]} Rb1 {[%emt 0:00:05]} 31. Nd2 {[%emt 0:00:12]} R1b2 {[%emt 0:00:08]} 32. f4 {[%emt 0:08:54]} Bb5 {[%emt 0:03:43]} 33. c4 {[%emt 0:00:04]} Be8 {[%emt 0:01:01]} 34. Rf1 {[%emt 0:00:04]} Ncd7 {[%emt 0:04:30]} 35. Rxa6 {[%emt 0:00:30]} Qb7 {[%emt 0:03:45]} 36. Ra1 {[%emt 0:06:13]} Qb4 {[%emt 0:01:28]} 37. fxe5 {[%emt 0:00:38]} dxe5 {[%emt 0:00:17]} 38. Kh1 {[%emt 0:00:06]} Bc5 {[%emt 0:01:05]} 39. Qd3 {[%emt 0:02:35]} Be7 {[%emt 0:04:35]} 40. Nf3 {[%emt 0:02:55]} Qd6 {[%emt 0:02:00]} 41. Qc3 {[%emt 0:33:34]} R2b4 {[%emt 0:05:52]} 42. Ba4 {[%emt 0:00:00]} Bd8 {[%emt 0:19:14]} 43. Bb5 {[%emt 0:00:00]} Qc5 {[%emt 0:03:04]} 44. Be3 {[%emt 0:00:00]} Qf8 {[%emt 0:00:43]} 45. Bd2 {[%emt 0:00:00]} Be7 {[%emt 0:01:52]} 46. Nxe5 {[%emt 0:00:00]} Nxe5 {[%emt 0:01:34]} 47. Qxe5 {[%emt 0:00:00]} Bxb5 {[%emt 0:00:16]} 48. Bxb4 {[%emt 0:00:00]} Bxb4 {[%emt 0:00:09]} 49. cxb5 {[%emt 0:00:00]} ({Weaker is} 49. Qxf6 Bxc4 50. Rfc1 Qd6 $18) 49... Nd7 {[%emt 0:00:06]} 50. Qc7 $18 {[%emt 0:00:00]} Rd8 {[%emt 0:00:19]} 51. e5 {[%emt 0:00:00]} Nc5 {[%emt 0:00:29]} 52. e6 {[%emt 0:00:00]} 1-0

[Event "Elitserien Allsvenskan 2018-19"]
[Site "Sweden"]
[Date "2019.03.31"]
[Round "9.7"]
[White "Lundin, Jan"]
[Black "Arvidsson, Tomas"]
[Result "1-0"]
[ECO "E61"]
[WhiteElo "2318"]
[BlackElo "2028"]
[Annotator "NA"]
[PlyCount "45"]
[EventDate "2018.11.09"]
[EventType "team-tourn"]
[EventCountry "SWE"]
[SourceTitle "playchess.com"]
[Source "ChessBase"]
[SourceQuality "1"]
[TimeControl "40/5400+30:1800+30"]

1. d4 {[%emt 0:00:00]} Nf6 {[%emt 0:02:10]} 2. Nf3 {[%emt 0:00:21]} g6 {[%emt 0:00:13]} 3. c4 {[%emt 0:00:52]} Bg7 {[%emt 0:00:06]} 4. Nc3 {[%emt 0:00:07]} d6 {[%emt 0:00:06]} 5. Bg5 {[%emt 0:00:06]} h6 {[%emt 0:00:18]} 6. Bh4 {[%emt 0:00:09]} g5 {[%emt 0:00:16]} 7. Bg3 {[%emt 0:00:07]} Nh5 {[%emt 0:02:31]} 8. e3 {[%emt 0:00:47]} Nd7 {[%emt 0:03:35]} 9. Be2 {[%emt 0:03:39]} Ndf6 {[%emt 0:02:00]} 10. Qc2 {[%emt 0:04:54]} Bg4 {[%emt 0:02:43]} 11. O-O-O {[%emt 0:05:15]} Qd7 {[%emt 0:01:52]} 12. Ne5 {[%emt 0:13:00]} dxe5 {[%emt 0:01:32]} 13. dxe5 {[%emt 0:00:13]} Qc6 {[%emt 0:09:04]} 14. exf6 {[%emt 0:04:14]} Nxf6 {[%emt 0:00:34] [#]} 15. Bxg4 $1 {[%emt 0:10:03]} Nxg4 {[%emt 0:00:50]} 16. Nd5 {[%emt 0:00:22]} Ne5 {[%emt 0:07:32]} 17. Qe4 {[%emt 0:10:06]} f5 {[%emt 0:07:28]} 18. Qxf5 $16 {[%emt 0:02:20]} ({White should try} 18. Qd4 $18 Qxc4+ 19. Qxc4 Nxc4 20. Nxc7+ Kf7 21. Nxa8 Bxb2+ 22. Kc2 Rxa8 23. Rb1) 18... Qxc4+ {[%emt 0:24:10]} 19. Kb1 {[%emt 0:08:35]} Rf8 {[%emt 0:04:20]} 20. Qe6 {[%emt 0:01:36]} Rf7 {[%emt 0:01:18]} 21. Rd4 {[%emt 0:06:01]} Qc6 {[%emt 0:02:22]} 22. Bxe5 {[%emt 0:01:58]} Bxe5 {[%emt 0:01:38]} 23. Qxe5 1-0